[Event "Late-Titled-Tuesday-Blitz-February-27-2024"]
[Site "Chess.com"]
[Date "2024.02.27"]
[Round "5"]
[White "OneTrickPony_82"]
[Black "EDaMatta"]
[Result "1-0"]
[WhiteElo "2533"]
[BlackElo "2247"]
[TimeControl "180+1"]
[EndTime "14:56:06 PST"]
[Termination "OneTrickPony_82 won by checkmate"]

1. d4 {[%clk 0:03:00.9]} 1... d5 {[%clk 0:02:59.5]} 2. c4 {[%clk 0:03:00.8]}
2... c6 {[%clk 0:02:59.5]} 3. Nf3 {[%clk 0:03:01.2]} 3... Nf6 {[%clk 0:03:00]}
4. cxd5 {[%clk 0:03:01.4]} 4... cxd5 {[%clk 0:03:00]} 5. Nc3 {[%clk 0:03:02]}
5... Nc6 {[%clk 0:03:00.4]} 6. Bf4 {[%clk 0:03:02.5]} 6... Bf5 {[%clk
0:02:59.9]} 7. Qb3 {[%clk 0:03:01.4]} 7... Na5 {[%clk 0:02:59.1]} 8. Qa4+ {[%clk
0:03:01.3]} 8... Bd7 {[%clk 0:02:59.8]} 9. Qc2 {[%clk 0:03:01.6]} 9... Rc8
{[%clk 0:02:58.1]} 10. e3 {[%clk 0:03:01.7]} 10... e6 {[%clk 0:02:57]} 11. Bd3
{[%clk 0:03:01]} 11... Be7 {[%clk 0:02:56.3]} 12. O-O {[%clk 0:03:00.4]} 12...
O-O {[%clk 0:02:55.9]} 13. Rfc1 {[%clk 0:02:59.1]} 13... b5 {[%clk 0:02:51.2]}
14. Qd1 {[%clk 0:02:57.2]} 14... Nc4 {[%clk 0:02:46.1]} 15. Qe2 {[%clk
0:02:55.9]} 15... b4 {[%clk 0:02:26.8]} 16. Nd1 {[%clk 0:02:51.7]} 16... Nd6
{[%clk 0:02:16.8]} 17. Ne5 {[%clk 0:02:46.1]} 17... Be8 {[%clk 0:02:05.4]} 18.
b3 {[%clk 0:02:34.8]} 18... Nde4 {[%clk 0:01:49.3]} 19. f3 {[%clk 0:02:30.4]}
19... Nc3 {[%clk 0:01:48]} 20. Nxc3 {[%clk 0:02:29.5]} 20... bxc3 {[%clk
0:01:48.1]} 21. h3 {[%clk 0:02:20.8]} 21... Qb6 {[%clk 0:01:33.2]} 22. Bc2
{[%clk 0:02:01.6]} 22... Ba3 {[%clk 0:01:27.6]} 23. Rd1 {[%clk 0:02:01.4]} 23...
Bb2 {[%clk 0:01:27.8]} 24. Rab1 {[%clk 0:02:01.1]} 24... h6 {[%clk 0:01:24.8]}
25. Nd3 {[%clk 0:01:59.4]} 25... Ba3 {[%clk 0:01:22.4]} 26. b4 {[%clk
0:01:57.3]} 26... Bb5 {[%clk 0:01:14.4]} 27. Qe1 {[%clk 0:01:48.7]} 27... Bxd3
{[%clk 0:01:13.5]} 28. Rxd3 {[%clk 0:01:48.4]} 28... Bb2 {[%clk 0:01:12.5]} 29.
b5 {[%clk 0:01:32.4]} 29... Qxb5 {[%clk 0:01:07.1]} 30. g4 {[%clk 0:01:22.1]}
30... Nd7 {[%clk 0:00:57.9]} 31. h4 {[%clk 0:01:13.1]} 31... Qa6 {[%clk
0:00:45.7]} 32. a4 {[%clk 0:01:06.4]} 32... Rfe8 {[%clk 0:00:44.3]} 33. g5
{[%clk 0:01:05.3]} 33... h5 {[%clk 0:00:42.1]} 34. g6 {[%clk 0:01:05.4]} 34...
fxg6 {[%clk 0:00:37]} 35. Qg3 {[%clk 0:01:04.8]} 35... e5 {[%clk 0:00:37.1]} 36.
dxe5 {[%clk 0:01:02.8]} 36... Qe6 {[%clk 0:00:33]} 37. Rbd1 {[%clk 0:00:45.1]}
37... Nxe5 {[%clk 0:00:31.4]} 38. Bxe5 {[%clk 0:00:44.1]} 38... Qxe5 {[%clk
0:00:31.8]} 39. Qxg6 {[%clk 0:00:42.3]} 39... Re6 {[%clk 0:00:28.3]} 40. Qg2
{[%clk 0:00:30.9]} 40... Rcc6 {[%clk 0:00:28.6]} 41. f4 {[%clk 0:00:28.1]} 41...
Qc7 {[%clk 0:00:21.4]} 42. Rxd5 {[%clk 0:00:26.3]} 42... Rg6 {[%clk 0:00:20.6]}
43. Bxg6 {[%clk 0:00:24.4]} 43... c2 {[%clk 0:00:20.9]} 44. Rd8+ {[%clk
0:00:22.8]} 44... Qxd8 {[%clk 0:00:20.4]} 45. Rxd8# {[%clk 0:00:22.4]} 1-0

[Event "Late-Titled-Tuesday-Blitz-February-27-2024"]
[Site "Chess.com"]
[Date "2024.02.27"]
[Round "5"]
[White "WindWhistler11"]
[Black "farzadbfd"]
[Result "1-0"]
[WhiteElo "2508"]
[BlackElo "2674"]
[TimeControl "180+1"]
[EndTime "14:56:08 PST"]
[Termination "WindWhistler11 won by checkmate"]

1. Nf3 {[%clk 0:02:58.8]} 1... d5 {[%clk 0:03:00.1]} 2. c4 {[%clk 0:02:53.7]}
2... e6 {[%clk 0:03:00.2]} 3. g3 {[%clk 0:02:53.7]} 3... Nf6 {[%clk 0:02:59.7]}
4. Bg2 {[%clk 0:02:54.1]} 4... Be7 {[%clk 0:03:00.3]} 5. O-O {[%clk 0:02:54.5]}
5... O-O {[%clk 0:03:00.5]} 6. b3 {[%clk 0:02:54.4]} 6... c5 {[%clk 0:02:59.4]}
7. e3 {[%clk 0:02:53.9]} 7... Nc6 {[%clk 0:02:59.6]} 8. Bb2 {[%clk 0:02:54.3]}
8... dxc4 {[%clk 0:02:59.1]} 9. bxc4 {[%clk 0:02:54.2]} 9... Qc7 {[%clk
0:02:54.6]} 10. Qe2 {[%clk 0:02:45.9]} 10... b6 {[%clk 0:02:54]} 11. Nc3 {[%clk
0:02:44.1]} 11... Bb7 {[%clk 0:02:53.2]} 12. d3 {[%clk 0:02:39.6]} 12... Rac8
{[%clk 0:02:47.7]} 13. Rfd1 {[%clk 0:02:39.4]} 13... Rfd8 {[%clk 0:02:47.2]} 14.
a3 {[%clk 0:02:34.3]} 14... Qb8 {[%clk 0:02:47.2]} 15. Rd2 {[%clk 0:02:33.9]}
15... Qa8 {[%clk 0:02:47]} 16. Ne1 {[%clk 0:02:25.5]} 16... Na5 {[%clk
0:02:46.4]} 17. Rad1 {[%clk 0:02:18.7]} 17... Rd7 {[%clk 0:02:41.2]} 18. f3
{[%clk 0:01:56.6]} 18... Rcd8 {[%clk 0:02:40.4]} 19. Ne4 {[%clk 0:01:54.2]}
19... Ne8 {[%clk 0:02:07.4]} 20. Bc3 {[%clk 0:01:47.1]} 20... Nc6 {[%clk
0:01:48.3]} 21. g4 {[%clk 0:01:45.7]} 21... Nd6 {[%clk 0:01:40.3]} 22. Ng3
{[%clk 0:01:42.9]} 22... Bh4 {[%clk 0:01:30.8]} 23. Nh5 {[%clk 0:01:38.8]} 23...
Ne8 {[%clk 0:01:29.2]} 24. Bh1 {[%clk 0:01:29.7]} 24... g6 {[%clk 0:01:20.7]}
25. Ng2 {[%clk 0:01:28.4]} 25... Be7 {[%clk 0:01:20.5]} 26. Ng3 {[%clk
0:01:17.2]} 26... Bf6 {[%clk 0:01:20.7]} 27. Bxf6 {[%clk 0:01:10.4]} 27... Nxf6
{[%clk 0:01:20.7]} 28. g5 {[%clk 0:01:07.5]} 28... Ne8 {[%clk 0:01:14]} 29. Ne4
{[%clk 0:00:58.9]} 29... Ne5 {[%clk 0:01:09.1]} 30. Nf4 {[%clk 0:00:55.2]} 30...
Qb8 {[%clk 0:00:40.7]} 31. h4 {[%clk 0:00:54.8]} 31... Kg7 {[%clk 0:00:25.3]}
32. h5 {[%clk 0:00:53.5]} 32... Nd6 {[%clk 0:00:25.4]} 33. h6+ {[%clk
0:00:51.9]} 33... Kh8 {[%clk 0:00:24.9]} 34. Nf6 {[%clk 0:00:52]} 34... Re7
{[%clk 0:00:24.6]} 35. Nh3 {[%clk 0:00:47.9]} 35... Qa8 {[%clk 0:00:24.3]} 36.
e4 {[%clk 0:00:45.2]} 36... Nd7 {[%clk 0:00:24.3]} 37. f4 {[%clk 0:00:44.7]}
37... Nxf6 {[%clk 0:00:23.3]} 38. gxf6 {[%clk 0:00:45.6]} 38... Red7 {[%clk
0:00:23.9]} 39. Ng5 {[%clk 0:00:46]} 39... Ne8 {[%clk 0:00:21.7]} 40. f5 {[%clk
0:00:42.6]} 40... exf5 {[%clk 0:00:19.6]} 41. e5 {[%clk 0:00:42.2]} 41... Bxh1
{[%clk 0:00:18.6]} 42. e6 {[%clk 0:00:43.1]} 42... fxe6 {[%clk 0:00:08.6]} 43.
f7 {[%clk 0:00:43.2]} 43... Nc7 {[%clk 0:00:06.9]} 44. Qe5# {[%clk 0:00:40.9]}
1-0

[Event "Late-Titled-Tuesday-Blitz-February-27-2024"]
[Site "Chess.com"]
[Date "2024.02.27"]
[Round "5"]
[White "Kiborg95"]
[Black "Djager97"]
[Result "0-1"]
[WhiteElo "2809"]
[BlackElo "2641"]
[TimeControl "180+1"]
[EndTime "14:56:09 PST"]
[Termination "Djager97 won by resignation"]

1. e4 {[%clk 0:02:59]} 1... e6 {[%clk 0:02:59.6]} 2. d3 {[%clk 0:02:54.9]} 2...
d5 {[%clk 0:03:00.5]} 3. Nd2 {[%clk 0:02:55]} 3... c5 {[%clk 0:02:59.4]} 4. g3
{[%clk 0:02:55.2]} 4... Nf6 {[%clk 0:02:58.6]} 5. f4 {[%clk 0:02:55.2]} 5... Nc6
{[%clk 0:02:58.5]} 6. e5 {[%clk 0:02:55.8]} 6... Nd7 {[%clk 0:02:58.2]} 7. Ndf3
{[%clk 0:02:56.6]} 7... Be7 {[%clk 0:02:55.7]} 8. Bg2 {[%clk 0:02:57]} 8... f6
{[%clk 0:02:54.1]} 9. exf6 {[%clk 0:02:57]} 9... gxf6 {[%clk 0:02:43.7]} 10. f5
{[%clk 0:02:45.8]} 10... Nde5 {[%clk 0:02:39]} 11. Nh4 {[%clk 0:02:38.4]} 11...
h5 {[%clk 0:02:33.6]} 12. Ne2 {[%clk 0:02:31.8]} 12... Qa5+ {[%clk 0:02:13.5]}
13. c3 {[%clk 0:02:29.7]} 13... Bd7 {[%clk 0:02:12.5]} 14. fxe6 {[%clk 0:02:26]}
14... Bxe6 {[%clk 0:02:12.5]} 15. Nf4 {[%clk 0:02:26.7]} 15... Bg4 {[%clk
0:02:08.5]} 16. Qc2 {[%clk 0:02:24.4]} 16... d4 {[%clk 0:02:03]} 17. O-O {[%clk
0:02:21.1]} 17... O-O-O {[%clk 0:02:00.9]} 18. Bd2 {[%clk 0:02:21.5]} 18... Qc7
{[%clk 0:01:37]} 19. Nd5 {[%clk 0:02:06.3]} 19... Qd7 {[%clk 0:01:33.8]} 20.
Nxf6 {[%clk 0:02:06.5]} 20... Bxf6 {[%clk 0:01:34.7]} 21. Rxf6 {[%clk 0:02:07]}
21... dxc3 {[%clk 0:01:33.8]} 22. Bxc3 {[%clk 0:02:07.9]} 22... Nd4 {[%clk
0:01:20.7]} 23. Qf2 {[%clk 0:01:47.6]} 23... Nxd3 {[%clk 0:01:14.3]} 24. Qf1
{[%clk 0:01:32.2]} 24... Ne2+ {[%clk 0:01:09.3]} 25. Kh1 {[%clk 0:01:32.2]}
25... Rhe8 {[%clk 0:00:48.5]} 26. Ba5 {[%clk 0:01:12.4]} 26... b6 {[%clk
0:00:31.9]} 27. Rc6+ {[%clk 0:00:57.9]} 27... Kb8 {[%clk 0:00:28.4]} 28. Bxb6
{[%clk 0:00:58.5]} 28... Rf8 {[%clk 0:00:19.8]} 29. Rf6 {[%clk 0:00:49]} 29...
Qe7 {[%clk 0:00:12.7]} 30. Bxd8 {[%clk 0:00:45.8]} 30... Rxd8 {[%clk 0:00:10.2]}
31. Ng6 {[%clk 0:00:34.9]} 31... Qe3 {[%clk 0:00:10.5]} 32. Rf8 {[%clk 0:00:31]}
32... Kc7 {[%clk 0:00:04.2]} 33. b4 {[%clk 0:00:18.2]} 33... Rxf8 {[%clk
0:00:03.5]} 34. Nxf8 {[%clk 0:00:19.1]} 34... Nf2+ {[%clk 0:00:03.6]} 0-1

[Event "Late-Titled-Tuesday-Blitz-February-27-2024"]
[Site "Chess.com"]
[Date "2024.02.27"]
[Round "5"]
[White "zajka-molotok"]
[Black "Abund"]
[Result "0-1"]
[WhiteElo "2509"]
[BlackElo "2751"]
[TimeControl "180+1"]
[EndTime "14:56:10 PST"]
[Termination "Abund won by checkmate"]

1. e4 {[%clk 0:02:57.7]} 1... c6 {[%clk 0:03:00]} 2. d4 {[%clk 0:02:57.1]} 2...
d5 {[%clk 0:03:00.9]} 3. exd5 {[%clk 0:02:56]} 3... cxd5 {[%clk 0:03:01.2]} 4.
Bd3 {[%clk 0:02:54.7]} 4... Nc6 {[%clk 0:03:01.2]} 5. c3 {[%clk 0:02:54.8]} 5...
Nf6 {[%clk 0:03:01.9]} 6. h3 {[%clk 0:02:54.8]} 6... e5 {[%clk 0:02:54.1]} 7.
dxe5 {[%clk 0:02:53.7]} 7... Nxe5 {[%clk 0:02:54.2]} 8. Nf3 {[%clk 0:02:54.2]}
8... Nxd3+ {[%clk 0:02:49.5]} 9. Qxd3 {[%clk 0:02:55.1]} 9... Bd6 {[%clk
0:02:48.5]} 10. O-O {[%clk 0:02:51.5]} 10... O-O {[%clk 0:02:48.3]} 11. Bg5
{[%clk 0:02:51.4]} 11... h6 {[%clk 0:02:48.6]} 12. Bh4 {[%clk 0:02:50.9]} 12...
g5 {[%clk 0:02:33.8]} 13. Bg3 {[%clk 0:02:50.4]} 13... Bxg3 {[%clk 0:02:33.9]}
14. fxg3 {[%clk 0:02:49.4]} 14... Qb6+ {[%clk 0:02:25.7]} 15. Qd4 {[%clk
0:02:48.1]} 15... Ne4 {[%clk 0:02:07.1]} 16. Qxb6 {[%clk 0:02:28.6]} 16... axb6
{[%clk 0:02:07.2]} 17. g4 {[%clk 0:02:22.2]} 17... Re8 {[%clk 0:01:59.6]} 18.
Nbd2 {[%clk 0:02:19.1]} 18... Nc5 {[%clk 0:01:52.9]} 19. Rfe1 {[%clk 0:02:13.2]}
19... Rxe1+ {[%clk 0:01:32.6]} 20. Rxe1 {[%clk 0:02:14.1]} 20... Be6 {[%clk
0:01:31.4]} 21. a3 {[%clk 0:02:12.1]} 21... Nd3 {[%clk 0:01:31.2]} 22. Rb1
{[%clk 0:02:04]} 22... Kg7 {[%clk 0:01:31.2]} 23. Ne1 {[%clk 0:01:50.3]} 23...
Nc5 {[%clk 0:01:27.9]} 24. Ndf3 {[%clk 0:01:45.5]} 24... Na4 {[%clk 0:01:17.3]}
25. Nd4 {[%clk 0:01:41.9]} 25... Re8 {[%clk 0:01:14.2]} 26. Nd3 {[%clk 0:01:36]}
26... Bd7 {[%clk 0:01:12.6]} 27. Kf2 {[%clk 0:01:33.9]} 27... Nc5 {[%clk
0:01:09.5]} 28. Rd1 {[%clk 0:01:21.7]} 28... Ba4 {[%clk 0:01:09.6]} 29. Nf5+
{[%clk 0:01:03.7]} 29... Kg6 {[%clk 0:01:09.1]} 30. Nxc5 {[%clk 0:00:45.7]}
30... Bxd1 {[%clk 0:01:03.4]} 31. Nxb7 {[%clk 0:00:31.8]} 31... Re2+ {[%clk
0:00:58.9]} 32. Kg3 {[%clk 0:00:28.3]} 32... Bb3 {[%clk 0:00:50.9]} 33. Nd8
{[%clk 0:00:16]} 33... Rxb2 {[%clk 0:00:42.6]} 34. Nc6 {[%clk 0:00:15.4]} 34...
f6 {[%clk 0:00:33.6]} 35. Nce7+ {[%clk 0:00:13.4]} 35... Kf7 {[%clk 0:00:33.8]}
36. Nc8 {[%clk 0:00:12.2]} 36... Bc2 {[%clk 0:00:32.5]} 37. Nxh6+ {[%clk
0:00:10.1]} 37... Ke6 {[%clk 0:00:29.7]} 38. Ng8 {[%clk 0:00:04.1]} 38... Be4
{[%clk 0:00:29]} 39. Nce7 {[%clk 0:00:03.4]} 39... Rxg2# {[%clk 0:00:28.9]} 0-1

[Event "Late-Titled-Tuesday-Blitz-February-27-2024"]
[Site "Chess.com"]
[Date "2024.02.27"]
[Round "5"]
[White "Sokoloco"]
[Black "laziestwin"]
[Result "1-0"]
[WhiteElo "2795"]
[BlackElo "2602"]
[TimeControl "180+1"]
[EndTime "14:56:12 PST"]
[Termination "Sokoloco won by resignation"]

1. b3 {[%clk 0:03:00.9]} 1... e5 {[%clk 0:02:59.5]} 2. Bb2 {[%clk 0:03:00.3]}
2... Nc6 {[%clk 0:02:59.5]} 3. e3 {[%clk 0:03:00.9]} 3... Nf6 {[%clk 0:02:57.9]}
4. Nf3 {[%clk 0:03:01.5]} 4... Bd6 {[%clk 0:02:57.7]} 5. d4 {[%clk 0:03:01.2]}
5... exd4 {[%clk 0:02:57.4]} 6. exd4 {[%clk 0:03:02.1]} 6... O-O {[%clk
0:02:57]} 7. Be2 {[%clk 0:03:02.8]} 7... Bb4+ {[%clk 0:02:55.1]} 8. c3 {[%clk
0:03:01.2]} 8... Be7 {[%clk 0:02:55.8]} 9. d5 {[%clk 0:03:00]} 9... Nb8 {[%clk
0:02:51.5]} 10. O-O {[%clk 0:02:59.7]} 10... d6 {[%clk 0:02:51.7]} 11. c4 {[%clk
0:02:52]} 11... Bf5 {[%clk 0:02:50.8]} 12. Nbd2 {[%clk 0:02:41.9]} 12... Nbd7
{[%clk 0:02:49.8]} 13. Nh4 {[%clk 0:02:41.7]} 13... Bg6 {[%clk 0:02:46.2]} 14.
f4 {[%clk 0:02:23.7]} 14... Be4 {[%clk 0:02:21.4]} 15. Qe1 {[%clk 0:01:41.5]}
15... Re8 {[%clk 0:02:15.7]} 16. Qg3 {[%clk 0:01:33.6]} 16... Bf8 {[%clk
0:02:08.2]} 17. Rae1 {[%clk 0:01:33.7]} 17... a5 {[%clk 0:01:46.9]} 18. Bd1
{[%clk 0:01:32.1]} 18... Nc5 {[%clk 0:01:46]} 19. Re3 {[%clk 0:01:32.8]} 19...
Bg6 {[%clk 0:01:10.7]} 20. Rxe8 {[%clk 0:01:24.2]} 20... Nxe8 {[%clk 0:01:11]}
21. f5 {[%clk 0:01:24.6]} 21... Nd3 {[%clk 0:01:11.3]} 22. fxg6 {[%clk
0:01:15.2]} 22... hxg6 {[%clk 0:01:07.9]} 23. Qxd3 {[%clk 0:00:54]} 23... Qxh4
{[%clk 0:01:07.4]} 24. Nf3 {[%clk 0:00:51.6]} 24... Qe7 {[%clk 0:01:02.7]} 25.
Bc2 {[%clk 0:00:47.3]} 25... Nf6 {[%clk 0:00:59.9]} 26. Ng5 {[%clk 0:00:45.2]}
26... Re8 {[%clk 0:00:57.7]} 27. Bd4 {[%clk 0:00:32.5]} 27... Ng4 {[%clk
0:00:10.8]} 28. Nxf7 {[%clk 0:00:23.3]} 28... Qh4 {[%clk 0:00:10.5]} 29. h3
{[%clk 0:00:24]} 29... Ne5 {[%clk 0:00:04.9]} 30. Bxe5 {[%clk 0:00:24.1]} 30...
dxe5 {[%clk 0:00:05]} 31. Qxg6 {[%clk 0:00:24.9]} 31... e4 {[%clk 0:00:03.9]}
32. Nh6+ {[%clk 0:00:21.6]} 32... Qxh6 {[%clk 0:00:02.7]} 33. Qxe8 {[%clk
0:00:22.3]} 33... g5 {[%clk 0:00:02.8]} 34. Bxe4 {[%clk 0:00:20.6]} 34... g4
{[%clk 0:00:02.7]} 35. Qg6+ {[%clk 0:00:16.1]} 35... Qxg6 {[%clk 0:00:02.7]} 36.
Bxg6 {[%clk 0:00:17]} 36... g3 {[%clk 0:00:02.5]} 37. Rf3 {[%clk 0:00:16.7]}
37... Bc5+ {[%clk 0:00:03.4]} 38. Kf1 {[%clk 0:00:17]} 1-0

[Event "Late-Titled-Tuesday-Blitz-February-27-2024"]
[Site "Chess.com"]
[Date "2024.02.27"]
[Round "5"]
[White "chessydotcom"]
[Black "becemix"]
[Result "0-1"]
[WhiteElo "2237"]
[BlackElo "2415"]
[TimeControl "180+1"]
[EndTime "14:56:12 PST"]
[Termination "becemix won by resignation"]

1. e4 {[%clk 0:03:00.9]} 1... e5 {[%clk 0:02:59.3]} 2. Nf3 {[%clk 0:02:58.3]}
2... Nc6 {[%clk 0:02:59.5]} 3. Bc4 {[%clk 0:02:56.7]} 3... Bc5 {[%clk
0:02:58.2]} 4. c3 {[%clk 0:02:56.9]} 4... Nf6 {[%clk 0:02:57.8]} 5. d3 {[%clk
0:02:56.1]} 5... O-O {[%clk 0:02:54.3]} 6. O-O {[%clk 0:02:54.2]} 6... a6 {[%clk
0:02:52.9]} 7. b4 {[%clk 0:02:52.6]} 7... Ba7 {[%clk 0:02:49.5]} 8. Re1 {[%clk
0:02:52.8]} 8... d6 {[%clk 0:02:48.5]} 9. Nbd2 {[%clk 0:02:49]} 9... Ne7 {[%clk
0:02:48.1]} 10. Nf1 {[%clk 0:02:46.5]} 10... Ng6 {[%clk 0:02:46.7]} 11. Ng3
{[%clk 0:02:45]} 11... c6 {[%clk 0:02:39.2]} 12. d4 {[%clk 0:02:36.3]} 12... Bg4
{[%clk 0:02:28.4]} 13. Be3 {[%clk 0:01:54.2]} 13... d5 {[%clk 0:02:18.1]} 14.
exd5 {[%clk 0:01:42.4]} 14... cxd5 {[%clk 0:02:13.5]} 15. Be2 {[%clk 0:01:41.3]}
15... e4 {[%clk 0:01:41.5]} 16. Ne5 {[%clk 0:01:29.3]} 16... Bxe2 {[%clk
0:01:39.6]} 17. Qxe2 {[%clk 0:01:30.2]} 17... Bb8 {[%clk 0:01:39.1]} 18. Nxg6
{[%clk 0:00:59.7]} 18... hxg6 {[%clk 0:01:40]} 19. c4 {[%clk 0:00:51.9]} 19...
Bxg3 {[%clk 0:01:33]} 20. hxg3 {[%clk 0:00:50.6]} 20... dxc4 {[%clk 0:01:33.9]}
21. Qxc4 {[%clk 0:00:51.5]} 21... Nd5 {[%clk 0:01:32.3]} 22. Rad1 {[%clk
0:00:49.4]} 22... Rc8 {[%clk 0:01:32]} 23. Qb3 {[%clk 0:00:49.4]} 23... Rc3
{[%clk 0:01:24.5]} 24. Qb1 {[%clk 0:00:49.2]} 24... Rc4 {[%clk 0:01:21.6]} 25.
Qxe4 {[%clk 0:00:46.9]} 25... b5 {[%clk 0:01:19.9]} 26. Bd2 {[%clk 0:00:38.3]}
26... Qd7 {[%clk 0:01:19.9]} 27. Qe5 {[%clk 0:00:35.5]} 27... Rd8 {[%clk
0:01:17.7]} 28. a3 {[%clk 0:00:34.8]} 28... Rc6 {[%clk 0:01:10.8]} 29. Rc1
{[%clk 0:00:33.1]} 29... Re6 {[%clk 0:01:09.4]} 30. Qg5 {[%clk 0:00:33]} 30...
Rd6 {[%clk 0:01:01.1]} 31. Bf4 {[%clk 0:00:29]} 31... Rb6 {[%clk 0:00:56]} 32.
Be3 {[%clk 0:00:23.8]} 32... Rf6 {[%clk 0:00:50.8]} 33. Qe5 {[%clk 0:00:20.5]}
33... Re8 {[%clk 0:00:50.7]} 34. Qg5 {[%clk 0:00:19.7]} 34... Rfe6 {[%clk
0:00:51.2]} 35. Kf1 {[%clk 0:00:15.9]} 35... Nb6 {[%clk 0:00:50.5]} 36. Qc5
{[%clk 0:00:14]} 36... Nc4 {[%clk 0:00:49.8]} 37. d5 {[%clk 0:00:14.5]} 37...
Re5 {[%clk 0:00:49.1]} 38. Bd4 {[%clk 0:00:13.7]} 38... Nd2+ {[%clk 0:00:48.2]}
39. Kg1 {[%clk 0:00:13.4]} 39... Rxe1+ {[%clk 0:00:49.1]} 40. Rxe1 {[%clk
0:00:13.6]} 40... Rxe1+ {[%clk 0:00:50]} 41. Kh2 {[%clk 0:00:13.3]} 41... Nf1+
{[%clk 0:00:47.2]} 42. Kg1 {[%clk 0:00:11.4]} 42... Ne3+ {[%clk 0:00:46.6]} 43.
Kh2 {[%clk 0:00:10.6]} 43... Ng4+ {[%clk 0:00:47.5]} 0-1

[Event "Late-Titled-Tuesday-Blitz-February-27-2024"]
[Site "Chess.com"]
[Date "2024.02.27"]
[Round "5"]
[White "pooh2012"]
[Black "Fjal"]
[Result "1-0"]
[WhiteElo "2469"]
[BlackElo "2276"]
[TimeControl "180+1"]
[EndTime "14:56:16 PST"]
[Termination "pooh2012 won on time"]

1. d4 {[%clk 0:03:00.9]} 1... d6 {[%clk 0:02:57.4]} 2. Nf3 {[%clk 0:02:55.5]}
2... Bg4 {[%clk 0:02:56.6]} 3. Nbd2 {[%clk 0:02:52.7]} 3... Nd7 {[%clk
0:02:56.7]} 4. c3 {[%clk 0:02:49.3]} 4... e5 {[%clk 0:02:57.2]} 5. h3 {[%clk
0:02:44]} 5... Bxf3 {[%clk 0:02:55.1]} 6. Nxf3 {[%clk 0:02:43.3]} 6... Ngf6
{[%clk 0:02:53.1]} 7. Qc2 {[%clk 0:02:41.2]} 7... e4 {[%clk 0:02:48.4]} 8. Nd2
{[%clk 0:02:36.1]} 8... Qe7 {[%clk 0:02:48.9]} 9. e3 {[%clk 0:02:35.3]} 9... g6
{[%clk 0:02:49.2]} 10. Be2 {[%clk 0:02:33.2]} 10... Bg7 {[%clk 0:02:49.6]} 11.
c4 {[%clk 0:02:31]} 11... O-O {[%clk 0:02:49.7]} 12. Rb1 {[%clk 0:02:28]} 12...
a5 {[%clk 0:02:47.8]} 13. b3 {[%clk 0:02:26.7]} 13... h5 {[%clk 0:02:39.5]} 14.
Ba3 {[%clk 0:02:17.1]} 14... Rfe8 {[%clk 0:02:37.9]} 15. O-O {[%clk 0:02:15.2]}
15... g5 {[%clk 0:02:32.9]} 16. Rfc1 {[%clk 0:02:11.1]} 16... g4 {[%clk
0:02:32.8]} 17. hxg4 {[%clk 0:02:10.1]} 17... Nxg4 {[%clk 0:02:31.8]} 18. Bxg4
{[%clk 0:02:08.6]} 18... hxg4 {[%clk 0:02:32.7]} 19. Nf1 {[%clk 0:02:07.3]}
19... f5 {[%clk 0:02:03.8]} 20. c5 {[%clk 0:02:06.2]} 20... dxc5 {[%clk
0:02:03.8]} 21. Bxc5 {[%clk 0:02:03.6]} 21... Nxc5 {[%clk 0:02:03.8]} 22. Qxc5
{[%clk 0:02:02.7]} 22... Qg5 {[%clk 0:00:42.9]} 23. Qd5+ {[%clk 0:01:50.8]}
23... Kh8 {[%clk 0:00:41.9]} 24. Rxc7 {[%clk 0:01:49.1]} 24... Ra6 {[%clk
0:00:30.7]} 25. Ng3 {[%clk 0:01:31.5]} 25... Rf8 {[%clk 0:00:18.9]} 26. Qxb7
{[%clk 0:01:11.9]} 26... Rh6 {[%clk 0:00:17.7]} 27. Rf7 {[%clk 0:01:12.3]} 27...
Rg8 {[%clk 0:00:11.2]} 28. Nxf5 {[%clk 0:01:00.1]} 28... Rh7 {[%clk 0:00:07.4]}
29. Rxg7 {[%clk 0:00:48.9]} 29... Rhxg7 {[%clk 0:00:08.3]} 30. Nxg7 {[%clk
0:00:48.4]} 30... Rxg7 {[%clk 0:00:09.2]} 31. Qxe4 {[%clk 0:00:46.4]} 31... Qh4
{[%clk 0:00:09.6]} 32. Qe5 {[%clk 0:00:44]} 32... Kh7 {[%clk 0:00:06.4]} 33. Rc1
{[%clk 0:00:33.6]} 33... Rf7 {[%clk 0:00:07]} 34. Qg3 {[%clk 0:00:22.2]} 34...
Qg5 {[%clk 0:00:04.9]} 35. Rc5 {[%clk 0:00:21.1]} 35... Qg6 {[%clk 0:00:04.2]}
36. Qh4+ {[%clk 0:00:20.7]} 36... Kg8 {[%clk 0:00:02.4]} 37. Rg5 {[%clk
0:00:20.8]} 1-0